bitfinex-derivatives/quotes_ETHF0:USTF0_20251119
["timestamp","ask_amount","ask_price","bid_price","bid_amount"]
[1763523861103,9.42574,3083.6,3083.5,0.6388]
[1763523861596,9.42993469,3083.6,3083.5,0.64255871]
[1763523862295,9.42993469,3083.6,3083.5,1.66545871]
[1763523862500,8.90419469,3083.6,3083.5,1.66545871]
[1763523862700,8.90419469,3083.6,3083.5,0.64255871]
[1763523863698,14.90419469,3083.6,3083.5,0.00375871]
[1763523863895,0.52579,3083.3,3083.2,0.00486184]
[1763523865798,8.90419469,3083.6,3083.5,1.7497]
[1763523865799,0.00419469,3083.6,3083.5,1.7497]
[1763523865994,0.00419469,3083.6,3083.5,0.6548]
[1763523866498,8.90419469,3083.6,3083.5,0.65713078]
[1763523867400,8.90419469,3083.6,3083.5,1.75203078]
[1763523867599,8.90419469,3083.6,3083.5,0.65713078]
[1763523870595,8.90419469,3083.6,3083.5,0.00233078]
[1763523870795,8.90419469,3083.6,3083.2,0.00486184]
[1763523870997,3.73359,3083.3,3083.2,0.00486184]
[1763523871509,0.52579,3083.3,3083.2,0.00486184]
[1763523871802,0.52579,3083.3,3083.2,0.00769447]
[1763523872107,3.73359,3083.3,3083.2,0.00769447]
[1763523872304,0.52579,3083.3,3083.2,0.00769447]
[1763523874203,0.52583,3083.1,3083.0,0.6388]
[1763523874403,0.52586,3082.9,3082.8,3.2078]
[1763523875309,0.52586,3082.9,3082.8,3.21023371]
[1763523875511,9.42586,3082.9,3082.8,3.21023371]
[1763523876905,18.66906001,3082.9,3082.5,0.00486184]
[1763523877105,0.52608,3081.6,3081.3,3.2078]
[1763523877709,9.42608,3081.6,3081.3,3.2078]
[1763523878211,9.42608,3081.6,3081.5,0.68224755]
[1763523880209,9.42608,3081.6,3081.5,0.00374755]
[1763523880510,9.42608,3081.6,3081.5,0.62714755]
[1763523880705,12.63388,3081.6,3081.5,0.00374755]
[1763523881211,0.52613,3081.3,3081.2,0.00486184]
[1763523882308,0.52927597,3081.3,3081.2,0.00737772]
[1763523883709,0.52625,3080.6,3080.5,0.6234]
[1763523883912,9.42625,3080.6,3080.5,0.6234]
[1763523884409,9.42625,3080.6,3080.0,0.6234]
[1763523884410,0.52634,3080.1,3080.0,0.6234]
[1763523884711,0.52634,3080.1,3080.0,0.6272964]
[1763523885911,0.52634,3080.1,3080.0,0.0038964]
[1763523887119,9.42634,3080.1,3080.0,0.0038964]
[1763523891616,9.42634,3080.1,3080.0,1.7157964]
[1763523893020,9.42634,3080.1,3080.0,0.6272964]
[1763523893320,9.42634,3080.1,3080.0,1.7157964]
[1763523893820,9.42634,3080.1,3080.0,0.6272964]
[1763523894022,9.42634,3080.1,3080.0,1.7157964]
[1763523894317,0.52634,3080.1,3080.0,1.7157964]
[1763523894922,9.42634,3080.1,3080.0,1.7157964]
[1763523896522,8.9,3080.1,3080.0,1.7157964]
[1763523896912,9.42634,3080.1,3080.0,1.7157964]
[1763523897219,9.42634,3080.1,3080.0,2.2421564]
[1763523898519,8.9,3080.1,3080.0,2.2421564]
[1763523898716,9.42634,3080.1,3080.0,2.2421564]
[1763523898924,9.42634,3080.1,3080.0,1.7157964]
[1763523900218,9.42634,3080.1,3080.0,0.6272964]
[1763523901220,9.42634,3080.1,3080.0,1.6646964]
[1763523901918,8.9,3080.1,3080.0,2.1910564]
[1763523903024,9.42634,3080.1,3080.0,0.6272964]
[1763523903226,9.42634,3080.1,3080.0,1.6646964]
[1763523903823,0.52639,3079.8,3079.7,3.21267005]
[1763523904830,0.52639,3079.8,3079.7,0.0076904]
[1763523905324,0.52639,3079.8,3079.0,0.6234]
[1763523905325,0.52651,3079.1,3079.0,0.6234]
[1763523905924,0.52659,3078.6,3078.5,0.6234]
[1763523906124,0.52659,3078.6,3078.5,1.6608]
[1763523906620,0.52886633,3078.6,3078.5,1.66486445]
[1763523907029,0.00227633,3078.6,3078.5,1.66486445]
[1763523907232,0.00487005,3078.9,3078.8,1.56396]
[1763523907530,0.00487005,3078.9,3078.8,4.77176]
[1763523908321,0.00883078,3078.9,3078.8,4.77176]
[1763523909428,3.078e-05,3078.9,3078.8,4.77176]
[1763523909623,0.52641,3079.7,3079.6,1.0374]
[1763523909832,0.78108784,3079.7,3079.6,1.0374]
[1763523910124,9.68108784,3079.7,3079.6,1.0374]
[1763523910631,9.68512818,3079.7,3079.6,1.0374]
[1763523911332,3.2078,3080.2,3080.1,1.0374]
[1763523912328,3.2078,3080.2,3080.0,0.6062]
[1763523912329,0.52634,3080.1,3080.0,0.6062]
[1763523912730,3.21039846,3080.2,3080.0,0.6062]
[1763523912933,8.9,3080.1,3080.0,0.6062]
[1763523913539,0.52637,3079.9,3079.8,0.00487005]
[1763523915231,8.9,3080.1,3080.0,1.6436]
[1763523915636,9.42634,3080.1,3080.0,1.6436]
[1763523916434,9.42634,3080.1,3080.0,0.6062]
[1763523921341,8.9,3080.1,3080.0,1.6436]
[1763523923442,9.67374638,3080.1,3080.0,0.6062]
[1763523923645,8.9,3080.1,3080.0,0.6062]
[1763523923952,8.9,3080.1,3080.0,1.5242]
[1763523924343,3.73672846,3080.2,3080.1,0.918]
[1763523924642,0.00259846,3080.2,3080.1,4.65214]
[1763523924847,3.2078,3081.1,3080.1,4.65214]
[1763523924848,1.13210186,3081.3,3081.0,0.5934]
[1763523925037,3.73397,3081.1,3081.0,0.5934]
[1763523925237,1.30014579,3081.1,3081.0,0.5934]
[1763523925442,0.52617,3081.1,3081.0,1.5114]
[1763523925746,0.52899658,3081.1,3081.0,1.51391062]
[1763523926147,0.00282658,3081.1,3081.0,1.51391062]
[1763523927446,0.00282658,3081.1,3081.0,0.59591062]
[1763523927447,3.21062658,3081.1,3081.0,0.59591062]
[1763523927651,3.21062658,3081.1,3081.0,1.51391062]
[1763523927952,0.00282658,3081.1,3081.0,1.51391062]
[1763523931754,0.52899658,3081.1,3081.0,1.51391062]
[1763523932248,0.52899658,3081.1,3081.0,2.04009062]
[1763523932551,0.52899658,3081.1,3081.0,0.59591062]
[1763523932949,0.52899658,3081.1,3081.0,0.00251062]
[1763523932950,3.73679658,3081.1,3081.0,0.00251062]
[1763523933146,3.73679658,3081.1,3081.0,0.58091062]
[1763523933751,3.73679658,3081.1,3081.0,0.00251062]
[1763523934151,3.73679658,3081.1,3081.0,0.58091062]
[1763523934347,10.03679658,3081.1,3081.0,0.58091062]
[1763523935558,10.03679658,3081.1,3081.0,0.00251062]
[1763523935747,0.52625,3080.6,3080.5,0.5934]
[1763523935948,0.52625,3080.6,3080.5,1.5506]
[1763523936654,0.52625,3080.6,3080.5,0.5934]
[1763523936846,0.52625,3080.6,3080.5,0.59708473]
[1763523937962,3.2078,3080.7,3080.5,1.55428473]
[1763523938155,0.52625,3080.6,3080.5,1.55428473]
[1763523938349,9.51062658,3081.1,3080.5,1.55428473]
[1763523938350,0.52624,3080.7,3080.6,0.9572]
[1763523941962,0.52621,3080.9,3080.5,0.59708473]
[1763523942163,10.03679658,3081.1,3081.0,0.5784]
[1763523942462,10.03679658,3081.1,3081.0,2.06178]
[1763523942762,0.00282658,3081.1,3081.0,4.7434]
[1763523943063,0.52899658,3081.1,3081.0,4.7434]
[1763523944455,0.52899658,3081.1,3081.0,3.7862]
[1763523944659,3.73679658,3081.1,3081.0,0.5784]
[1763523945465,10.03679658,3081.1,3081.0,0.5784]
[1763523946861,6.82899658,3081.1,3081.0,1.5356]
[1763523947966,6.30282658,3081.1,3081.0,2.06178]
[1763523948367,0.00487005,3081.4,3081.3,0.9572]
[1763523949467,6.0082956,3081.4,3081.3,0.9572]
[1763523949769,6.0082956,3081.4,3081.0,0.5784]
[1763523949770,0.52617,3081.1,3081.0,0.5784]
[1763523950071,3.73397,3081.1,3081.0,0.5784]
[1763523950272,0.52617,3081.1,3081.0,0.5784]
[1763523950865,6.52617,3081.1,3081.0,1.5356]
[1763523951366,9.73397,3081.1,3081.0,1.5356]
[1763523951672,9.73397,3081.1,3081.0,0.5784]
[1763523953182,0.52622,3080.8,3080.7,3.2078]
[1763523953685,9.2078,3081.1,3080.5,0.59708473]
[1763523953686,0.52625,3080.6,3080.5,0.59708473]
[1763523954588,0.52625,3080.6,3080.5,1.55428473]
[1763523955078,0.52622,3080.8,3080.7,0.9572]
[1763523955982,0.52625,3080.6,3080.5,1.55428473]
[1763523960383,9.2078,3081.1,3080.9,0.8736]
[1763523960384,0.52618,3081.0,3080.9,0.8736]
[1763523960591,9.73397,3081.1,3081.0,1.39978]
[1763523960887,9.73397,3081.1,3081.0,1.4144]
[1763523961090,9.73397,3081.1,3081.0,1.94058]
[1763523961791,9.73397,3081.1,3081.0,1.4144]
[1763523962895,9.73397,3081.1,3081.0,0.5408]
[1763523963191,9.97923083,3081.1,3081.0,0.5408]
[1763523963391,9.97923083,3081.1,3081.0,1.4144]
[1763523963693,9.2078,3081.1,3081.0,1.4144]
[1763523963990,9.73397,3081.1,3081.0,1.4144]
[1763523964290,10.50537413,3081.1,3081.0,0.5408]
[1763523964487,9.73397,3081.1,3081.0,0.5408]
[1763523964692,9.73397,3081.1,3081.0,1.4144]
[1763523964987,6.52617,3081.1,3081.0,1.4144]
[1763523965287,6.0,3081.1,3081.0,1.94058]
[1763523966184,0.52614,3081.3,3081.2,0.8736]
[1763523966485,0.52614,3081.3,3081.2,4.0814]
[1763523966687,6.52614,3081.3,3081.2,4.0814]
[1763523966881,6.0,3081.3,3081.2,4.60755]
[1763523967388,6.52613,3081.3,3081.2,4.60755]
[1763523967588,6.0,3081.3,3081.2,4.60755]
[1763523969994,6.52613,3081.3,3081.2,4.60755]
[1763523970490,0.52613,3081.3,3081.2,4.60755]
[1763523971391,6.12613,3081.3,3081.2,4.0814]
[1763523971585,6.12613,3081.3,3081.2,3.2078]
[1763523973692,0.52617,3081.1,3081.0,0.5408]
[1763523974293,6.12617,3081.1,3081.0,0.5408]
[1763523974492,6.12617,3081.1,3080.5,0.59708473]
[1763523974493,0.52625,3080.6,3080.5,0.59708473]
[1763523975497,0.52625,3080.6,3080.5,1.47068473]
[1763523977995,0.52623,3080.8,3080.7,0.8736]
[1763523978198,5.6,3081.1,3081.0,0.8736]
[1763523978199,6.12617,3081.1,3081.0,0.8736]
[1763523978394,6.12617,3081.1,3081.0,1.4144]
[1763523980297,6.12617,3081.1,3081.0,5.2604]
[1763523981999,6.12617,3081.1,3081.0,4.3868]
[1763523982302,9.33397,3081.1,3081.0,4.3868]
[1763523982494,9.33397,3081.1,3081.0,5.2604]
[1763523982900,9.33397,3081.1,3081.0,4.3868]
[1763523983708,9.33397,3081.1,3081.0,0.5408]
[1763523985306,0.52625,3080.6,3080.5,0.59708473]
[1763523986007,0.52625,3080.6,3080.5,1.43138473]
[1763523987303,0.52625,3080.6,3080.5,0.59708473]
[1763523988998,8.8078,3081.1,3080.5,0.59708473]
[1763523989194,9.33397,3081.1,3081.0,0.495]
[1763523989402,10.10303821,3081.1,3081.0,0.495]
[1763523989604,0.52625,3080.6,3080.5,0.59708473]
[1763523990806,9.33398,3081.1,3081.0,1.2838]
[1763523992308,9.33398,3081.1,3081.0,1.80998]
[1763523992607,3.2078,3081.1,3081.0,1.80998]
[1763523993000,0.5344156,3081.4,3081.3,1.31493]
[1763523993408,0.0082956,3081.4,3081.3,1.31493]
[1763523993616,6.1344156,3081.4,3081.3,1.31493]
[1763523994003,5.6082956,3081.4,3081.3,4.52273]
[1763523995199,6.1344156,3081.4,3081.3,3.9966]
[1763523995712,6.1344156,3081.4,3081.3,4.52273]
[1763523996605,6.1344156,3081.4,3081.3,3.9966]
[1763523997004,0.5344156,3081.4,3081.3,3.9966]
[1763523997201,0.5344156,3081.4,3081.3,4.52273]
[1763523997509,6.1344156,3081.4,3081.3,4.52273]
[1763523997699,0.5344156,3081.4,3081.3,4.52273]
[1763523997896,0.0082956,3081.4,3081.3,4.52273]
[1763523998099,3.73371,3082.6,3082.5,0.495]
[1763523998303,4.50380267,3082.6,3082.5,0.495]
[1763523998508,1.29600267,3082.6,3082.5,0.495]
[1763523998815,6.12591,3082.6,3082.5,1.2838]
[1763523999115,6.12991026,3082.6,3082.5,1.2838]
[1763524001313,5.60400026,3082.6,3082.5,1.2838]
[1763524002605,5.60400026,3082.6,3082.5,0.495]
[1763524003708,5.60400026,3082.6,3082.5,1.2838]
[1763524006710,6.12991026,3082.6,3082.5,1.2838]
[1763524009515,6.12991026,3082.6,3082.5,0.495]
[1763524010417,5.60400026,3082.6,3082.5,1.2838]
[1763524010617,5.60400026,3082.6,3082.5,1.80973]
[1763524011018,6.12991026,3082.6,3082.5,1.80973]
[1763524011518,6.12991026,3082.6,3082.5,1.2838]
[1763524012919,6.12991026,3082.6,3082.5,0.495]
[1763524013618,6.12991026,3082.6,3082.5,1.2838]
[1763524014621,6.12991026,3082.6,3082.5,0.495]
[1763524022331,0.52593,3082.5,3082.4,3.2078]
[1763524022520,7.22150981,3082.5,3081.5,0.495]
[1763524022725,0.52608,3081.6,3081.5,0.495]
[1763524023328,6.12608,3081.6,3081.5,0.495]
[1763524023642,6.12608,3081.6,3081.5,1.2548]
[1763524023831,5.6,3081.6,3081.5,2.91493969]
[1763524024218,5.6,3081.6,3081.5,1.7809]
[1763524025434,5.6,3081.6,3081.5,1.2548]
[1763524026029,3.2078,3082.5,3081.5,1.2548]
[1763524026030,0.52603,3081.9,3081.8,0.7598]
[1763524026226,0.52603,3081.9,3081.8,3.9676]
[1763524026730,0.52608,3081.6,3081.5,0.495]
[1763524026935,5.82608,3081.6,3081.5,0.495]
[1763524029128,5.82608,3081.6,3081.4,3.2078]
[1763524029329,8.5078,3081.6,3081.0,0.495]
[1763524029528,8.5078,3081.6,3080.6,3.2078]
[1763524029529,0.52624,3080.7,3080.6,3.2078]
[1763524030433,0.52624,3080.7,3080.6,3.9676]
[1763524030830,5.82624,3080.7,3080.6,3.9676]
[1763524031631,5.82624,3080.7,3080.6,3.2078]
[1763524032439,5.82624,3080.7,3080.6,3.9676]
[1763524033227,5.3,3080.7,3080.6,3.9676]
[1763524033535,0.00487005,3081.0,3080.9,0.7598]
[1763524033731,0.53106005,3081.0,3080.6,3.2078]
[1763524033930,0.00487005,3081.0,3080.9,0.7598]
[1763524034135,5.83107005,3081.0,3080.9,0.7598]
[1763524035540,0.52624,3080.7,3080.6,3.2078]
[1763524035740,0.52624,3080.7,3080.6,3.9676]
[1763524038039,0.53106005,3081.0,3080.9,1.286]
[1763524038651,0.53106005,3081.0,3080.9,0.7598]
[1763524040238,0.53106005,3081.0,3080.9,1.286]
[1763524041746,0.53106005,3081.0,3080.9,0.7598]
[1763524042240,0.52624,3080.7,3080.6,4.49385]
[1763524042839,0.52624,3080.7,3080.6,3.9676]
[1763524043138,0.52624,3080.7,3080.6,4.49385]
[1763524043340,0.00487005,3081.0,3080.9,0.7375]
[1763524043643,0.53105005,3081.0,3080.9,0.7375]
[1763524046239,0.53105005,3081.0,3080.9,1.2637]
[1763524046842,0.53105005,3081.0,3080.9,0.7375]
[1763524047938,0.53105005,3081.0,3080.9,1.2637]
[1763524048237,0.52624,3080.7,3080.6,3.9014]
[1763524050042,0.00487005,3081.0,3080.9,0.6936]
[1763524050242,0.53105005,3081.0,3080.9,0.6936]
[1763524053543,0.52624,3080.7,3080.6,3.9014]
[1763524055351,0.52624,3080.7,3080.6,3.2078]
[1763524056046,0.52625,3080.6,3080.5,0.44328473]
[1763524057846,0.77030228,3080.6,3080.1,3.2078]
[1763524058351,0.52632,3080.2,3080.1,3.2078]
[1763524058843,0.52862234,3080.2,3080.1,3.21146653]
[1763524059043,5.82862234,3080.2,3080.1,3.21146653]
[1763524061354,5.82862234,3080.2,3080.1,0.00366653]
[1763524065557,5.82862234,3080.2,3080.1,0.69726653]
[1763524066659,5.30230234,3080.2,3080.1,0.69726653]
[1763524066957,5.82862234,3080.2,3080.1,0.69726653]
[1763524068060,5.82862234,3080.2,3080.1,1.22360653]
[1763524068460,5.82862234,3080.2,3080.1,0.69726653]
[1763524069952,5.30230234,3080.2,3080.1,3.90506653]
[1763524070162,0.53105005,3081.0,3080.9,0.6936]
[1763524070461,0.52622,3080.8,3080.7,3.2078]
[1763524070758,0.52622,3080.8,3080.7,3.9014]
[1763524071259,3.53032139,3080.8,3080.7,3.9014]
[1763524074862,3.2078,3081.4,3080.7,3.9014]
[1763524074863,0.52617,3081.1,3081.0,1.1286]
[1763524075259,3.94037,3081.1,3081.0,0.435]
[1763524075665,3.52617,3081.1,3081.0,1.1286]
[1763524075958,3.9438159,3081.1,3081.0,1.1286]
[1763524077050,3.9438159,3081.1,3081.0,0.435]
[1763524077254,0.94042,3080.8,3080.7,3.2078]
[1763524077460,0.94042,3080.8,3080.7,3.9014]
[1763524077654,0.94042,3080.8,3080.7,3.2078]
[1763524079356,0.52622,3080.8,3080.7,3.8851]
[1763524079564,0.86342,3080.8,3080.7,3.8851]
[1763524080660,0.86342,3080.8,3080.7,3.2078]
[1763524081564,0.52622,3080.8,3080.7,3.8851]
[1763524082264,0.86342,3080.8,3080.7,3.8851]
[1763524083464,0.86342,3080.8,3080.7,3.2078]
[1763524083668,0.86342,3080.8,3080.7,3.8851]
[1763524084569,0.52622,3080.8,3080.7,3.8851]
[1763524085064,0.86342,3080.8,3080.7,3.8851]
[1763524085564,0.52622,3080.8,3080.7,3.8851]
[1763524085764,0.52622,3080.8,3080.7,3.2078]
[1763524085765,0.86342,3080.8,3080.7,3.2078]
[1763524085958,0.86342,3080.8,3080.7,3.8851]
[1763524086164,0.52622,3080.8,3080.7,3.8851]
[1763524086468,0.86342,3080.8,3080.7,3.8851]
[1763524086866,0.86342,3080.8,3080.7,3.2078]
[1763524087666,0.52625,3080.6,3080.5,1.1123]
[1763524087874,0.86345,3080.6,3080.5,0.435]
[1763524088065,0.8635,3080.3,3080.2,3.8851]
[1763524088663,0.8635,3080.3,3080.2,3.2078]
[1763524088868,1.16048769,3080.7,3080.1,0.00366653]
[1763524088869,0.86352,3080.2,3080.1,0.00366653]
[1763524089374,3.86352,3080.2,3080.1,0.00366653]
[1763524090666,3.86352,3080.2,3078.9,1.16048769]
[1763524090667,0.3372,3079.9,3079.5,0.34149999]
[1763524090867,3.0,3080.2,3079.0,1.1123]
[1763524090868,0.52651,3079.1,3079.0,1.1123]
[1763524091078,1.24451,3079.1,3079.0,1.1123]
[1763524091663,1.24451,3079.1,3079.0,1.11560469]
[1763524091863,1.24451,3079.1,3079.0,0.00330469]
[1763524092075,0.52651,3079.1,3079.0,1.08250469]
[1763524092279,0.53133005,3079.4,3079.3,0.6773]
[1763524092469,3.53133005,3079.4,3079.3,0.6773]
[1763524092664,1.24451,3079.1,3079.0,3.61300469]
[1763524092879,0.52651,3079.1,3079.0,1.08250469]
[1763524093080,1.24451,3079.1,3079.0,0.40520469]
[1763524093878,4.45231,3079.1,3079.0,0.00330469]
[1763524095074,4.24933005,3079.4,3079.3,0.6773]
[1763524095277,3.53133005,3079.4,3079.3,0.6773]
[1763524096477,3.00487005,3079.4,3079.3,0.6773]
[1763524096975,3.00487005,3079.4,3079.0,4.29030469]
[1763524096976,0.52651,3079.1,3079.0,4.29030469]
[1763524097381,1.24451,3079.1,3079.0,3.61300469]
[1763524097583,1.24451,3079.1,3079.0,3.21110469]
[1763524098081,1.24451,3079.1,3079.0,0.00330469]
[1763524099179,0.52651,3079.1,3079.0,1.08250469]
[1763524099571,1.24451,3079.1,3079.0,0.40520469]
[1763524099767,1.24451,3079.1,3079.0,0.00330469]
[1763524101883,0.52651,3079.1,3079.0,1.08250469]
[1763524102179,1.24451,3079.1,3079.0,0.40520469]
[1763524102689,1.24451,3079.1,3079.0,1.06630469]
[1763524103685,1.24451,3079.1,3079.0,0.40520469]
[1763524104577,1.24451,3079.1,3079.0,1.06630469]
[1763524105286,1.24451,3079.1,3079.0,0.40520469]
[1763524105581,4.45231,3079.1,3079.0,0.00330469]
[1763524107582,1.14036,3078.8,3078.7,0.00487005]
[1763524108684,1.14342844,3078.8,3078.7,0.00827377]
[1763524109289,4.14342844,3078.8,3078.7,0.00827377]
[1763524109784,4.14342844,3078.8,3078.7,0.61567377]
[1763524109785,4.10252844,3078.8,3078.7,0.61567377]
[1763524109985,4.10252844,3078.8,3078.7,0.00827377]
[1763524110781,4.10252844,3078.8,3078.7,0.61567377]
[1763524111485,4.10252844,3078.8,3078.7,0.00827377]
[1763524111984,4.10252844,3078.8,3077.9,0.5267]
[1763524111985,0.5646,3078.2,3077.2,3.2078]
[1763524112187,3.73451,3077.9,3077.8,0.6074]
[1763524112787,0.52671,3077.9,3077.8,0.6074]
[1763524112982,0.52671,3077.9,3077.8,0.6104682]
[1763524113385,1.09131,3077.9,3077.8,0.6104682]
[1763524113585,4.29911,3077.9,3077.8,0.0030682]
[1763524114184,7.29911,3077.9,3077.8,0.0030682]
[1763524117996,1.09137,3077.6,3077.5,0.40677005]
[1763524118894,4.09137,3077.6,3077.5,0.40985389]
[1763524119688,3.52677,3077.6,3077.5,1.01725389]
[1763524120998,4.09137,3077.6,3077.5,1.01725389]
[1763524121891,4.09137,3077.6,3077.5,0.00795389]
[1763524122999,4.09137,3077.6,3077.5,3.89e-06]
[1763524123293,1.09145,3077.1,3077.0,0.4018]
[1763524123698,0.5646,3076.6,3075.9,3.2078]
[1763524124003,1.09171,3075.6,3075.5,3.5706]
[1763524124189,5.23135794,3075.6,3075.5,0.36655111]
[1763524124788,4.09424746,3075.6,3075.5,0.36655111]
[1763524125195,4.09424746,3075.6,3075.5,0.97395111]
[1763524126000,4.09424746,3075.6,3075.5,0.36655111]
[1763524126390,4.09424746,3075.6,3075.5,0.00375111]
[1763524127600,1.09179,3075.1,3075.0,0.3628]
[1763524127792,1.09179,3075.1,3074.5,3.5706]
[1763524127793,0.52728,3074.6,3074.5,4.178]
[1763524127993,3.00253746,3075.6,3075.0,0.9702]
[1763524127994,6.21033746,3075.6,3075.0,0.9702]
[1763524128199,0.52719,3075.2,3075.1,0.6074]
[1763524128398,0.52719,3075.2,3075.1,0.61075431]
[1763524128695,0.52728,3074.6,3074.5,4.178]
[1763524129896,0.52726,3074.8,3074.5,4.18204519]
[1763524130101,3.2078,3075.2,3074.5,4.18204519]
[1763524130393,0.52727,3074.7,3074.6,0.6074]
[1763524130592,3.52727,3074.7,3074.6,0.6074]
[1763524132094,3.0,3074.7,3074.6,0.6074]
[1763524132595,3.52726,3074.7,3074.6,0.6074]
[1763524133198,3.0,3074.7,3074.6,0.6074]
[1763524134798,0.52725,3074.8,3074.7,0.6074]
[1763524135004,1.14398,3074.6,3074.5,4.18204519]
[1763524135206,4.14398,3074.6,3074.5,4.18204519]
[1763524135392,7.35178,3074.6,3074.5,0.00404519]
[1763524135592,4.14398,3074.6,3074.5,0.00404519]
[1763524136212,7.35178,3074.6,3074.5,0.00404519]
[1763524136504,3.52728,3074.6,3074.5,0.97424519]
[1763524136705,7.35178,3074.6,3074.5,0.36684519]
[1763524136901,4.14398,3074.6,3074.5,0.97424519]
[1763524137201,4.14398,3074.6,3074.5,0.36684519]
[1763524137408,4.14398,3074.6,3074.5,0.00404519]
[1763524138307,4.14398,3074.6,3074.5,0.88844519]
[1763524138806,4.14398,3074.6,3074.5,0.00404519]
[1763524139797,7.35178,3074.6,3074.5,0.00404519]
[1763524141405,0.5892,3074.2,3073.6,3.2078]
[1763524141703,1.11663,3073.7,3073.6,0.5525]
[1763524142208,0.5892,3073.6,3073.2,3.2078]
[1763524142503,3.21267837,3074.2,3073.5,0.88826057]
[1763524142693,1.11657,3074.1,3074.0,0.3319]
[1763524142897,3.0,3074.1,3074.0,0.8844]
[1763524143708,3.52737,3074.1,3074.0,0.8844]
[1763524143897,4.11657,3074.1,3074.0,0.8844]
[1763524144912,3.0,3074.1,3074.0,6.8844]
[1763524145107,3.73499,3075.1,3075.0,0.8844]
[1763524145406,0.2766,3075.5,3074.7,0.5525]
[1763524145407,1.11645,3074.8,3074.7,0.5525]
[1763524146502,1.11648,3074.6,3074.5,0.5525]
[1763524147302,0.936,3074.5,3074.4,0.00487837]
[1763524147697,0.52728,3074.6,3074.4,0.55737837]
[1763524147898,3.2078,3074.8,3074.7,0.5525]
[1763524147899,3.73506,3074.8,3074.7,0.5525]
[1763524148204,0.3468,3074.0,3073.5,0.00386057]
[1763524148497,0.52759,3072.8,3072.7,3.7603]
[1763524148707,0.3193,3073.5,3072.5,0.5525]
[1763524148708,0.52762,3072.6,3072.5,0.5525]
[1763524149003,1.11682,3072.6,3072.5,0.5525]
[1763524149199,0.52767,3072.4,3072.3,0.5525]
[1763524149608,0.53032526,3072.4,3072.3,0.55590289]
[1763524151311,1.11952526,3072.4,3072.3,0.00340289]
[1763524151509,1.11703,3071.4,3070.7,3.2078]
[1763524151706,0.52783,3071.4,3071.3,0.5525]
[1763524151907,0.52779,3071.7,3071.3,0.5525]
[1763524152109,3.73555,3071.9,3071.8,0.5525]
[1763524152407,3.2078,3071.9,3071.8,0.5525]
[1763524152612,0.5892,3072.1,3071.5,3.5397]
[1763524152812,0.52779,3071.7,3071.6,0.5525]
[1763524153012,0.52779,3071.7,3071.6,0.55559121]
[1763524153310,1.11698,3071.7,3071.6,0.00309121]
[1763524153515,3.2078,3071.8,3071.7,0.5525]
[1763524153709,0.5892,3071.7,3071.6,0.55559121]
[1763524153904,0.5892,3071.7,3071.6,0.00309121]
[1763524154402,1.11705,3071.3,3071.2,0.09064158]
[1763524154603,3.2078,3071.3,3070.6,0.5525]
[1763524154805,0.52786,3071.2,3070.6,4.28826]
[1763524155001,0.00487837,3071.2,3071.1,3.7603]
[1763524155208,0.59407837,3071.2,3070.6,3.2078]
[1763524155411,0.52789,3071.1,3070.6,3.21199014]
[1763524155619,0.52791,3071.0,3070.6,3.21199014]
[1763524155914,2.1,3070.9,3070.7,0.5525]
[1763524156312,2.62792,3070.9,3070.7,0.5525]
[1763524156503,2.1,3070.9,3070.6,3.21199014]
[1763524156710,2.1,3070.9,3070.6,0.00419014]
[1763524156711,5.83572,3070.9,3070.6,0.00419014]
[1763524157013,0.5892,3070.7,3070.6,0.00419014]
[1763524157217,2.1,3070.9,3070.8,0.5525]
[1763524158415,0.84363,3072.0,3071.2,0.3009]
[1763524158722,0.84363,3072.0,3071.9,3.2078]
[1763524158723,0.9051,3072.0,3071.9,3.2078]
[1763524159415,0.6159,3072.0,3071.9,3.2078]
[1763524159620,0.3,3072.0,3071.9,3.5087]
[1763524160129,0.00487837,3072.3,3072.2,0.82859]
[1763524160619,0.30487837,3072.3,3072.2,0.3009]
[1763524161220,0.00487837,3072.3,3072.2,0.3009]
[1763524162020,0.59407837,3072.3,3071.9,3.2078]
[1763524162321,0.3657,3072.0,3071.9,3.5472]
[1763524162526,1.50803,3072.0,3071.9,3.2078]
[1763524163722,1.50803,3072.0,3071.4,3.2078]
[1763524163723,0.6146,3071.7,3071.4,3.2078]
[1763524163922,0.52781,3071.5,3071.4,3.2078]
[1763524164618,0.52785,3071.3,3071.0,4.09799]
[1763524164824,0.52787,3071.2,3071.0,3.5701]
[1763524165025,0.52787,3071.2,3071.0,4.09799]
[1763524165324,0.52787,3071.2,3071.1,0.5845]
[1763524165524,3.2078,3071.7,3071.1,1.11237]
[1763524165729,3.73558,3071.7,3071.3,0.52784]
[1763524166021,0.3,3071.6,3071.2,0.52785]
[1763524166228,0.8278,3071.6,3071.3,0.52784]
[1763524166418,0.3,3071.6,3071.0,3.5701]
[1763524166623,0.3,3071.6,3071.1,0.52788]
[1763524166820,0.52786,3071.3,3071.1,0.52787]
[1763524167218,0.3,3071.6,3071.2,1.11236]
[1763524167625,0.3,3071.6,3071.3,0.52784]
[1763524167823,0.3,3071.6,3071.5,1.0219]
[1763524168620,0.52762,3072.6,3072.2,1.16949]
[1763524168819,3.2078,3073.0,3072.9,0.6418]
[1763524169121,0.3,3073.4,3073.0,0.3801]
[1763524169322,0.3,3073.4,3073.3,0.6418]
[1763524169523,3.2078,3073.5,3073.4,1.16929]
[1763524169733,3.2078,3073.5,3073.0,0.3801]
[1763524170023,3.210202,3073.5,3073.4,0.6418]
[1763524170625,0.002402,3073.5,3073.4,0.6418]
[1763524171017,0.529882,3073.5,3073.1,0.00487837]
[1763524171217,0.636,3073.2,3073.1,0.00487837]
[1763524171928,0.002402,3073.5,3073.1,0.64667837]
[1763524172427,0.52751,3073.3,3073.1,0.64667837]
[1763524174024,0.52776,3071.9,3071.6,3.2078]
[1763524174327,3.2078,3072.3,3071.6,3.73559]